bitfinex/quotes_SOLUSD_20220113
["timestamp","ask_amount","ask_price","bid_price","bid_amount"]
[1642032549966,13.53350548,151.69,151.63,0.26]
[1642032550366,0.26,151.68,151.62,3.76188502]
[1642032550565,2.897,151.68,151.62,3.76188502]
[1642032551165,3.147,151.68,151.62,3.76188502]
[1642032551565,0.51,151.68,151.62,3.76188502]
[1642032551767,0.26,151.68,151.62,3.76188502]
[1642032552368,9.8923,151.67,151.62,3.76188502]
[1642032552572,12.5293,151.67,151.62,3.76188502]
[1642032552767,0.26,151.66,151.62,3.76188502]
[1642032553666,2.887,151.67,151.62,3.76188502]
[1642032553667,2.637,151.67,151.62,3.76188502]
[1642032553867,13.53350548,151.69,151.63,0.26]
[1642032554066,13.53350548,151.69,151.62,4.01188502]
[1642032554770,23.67460548,151.69,151.62,3.76188502]
[1642032555369,2.897,151.68,151.62,3.76188502]
[1642032555782,3.147,151.68,151.62,3.76188502]
[1642032555972,12.597,151.68,151.62,3.76188502]
[1642032556171,59.0,151.64,151.56,5.64282754]
[1642032556371,2.898,151.63,151.56,5.64282754]
[1642032556571,0.26,151.63,151.56,5.64282754]
[1642032556871,0.51,151.63,151.56,5.64282754]
[1642032557073,79.9977,151.67,151.56,5.64282754]
[1642032557074,9.8942,151.65,151.56,15.53672754]
[1642032557272,10.1442,151.65,151.56,15.53672754]
[1642032557472,0.26,151.64,151.57,0.26]
[1642032557873,0.51,151.65,151.57,0.26]
[1642032558475,9.8949,151.63,151.56,5.66282754]
[1642032558673,10.1449,151.63,151.56,5.91282754]
[1642032560374,0.25,151.63,151.57,0.26]
[1642032560804,10.4041,151.65,151.57,6.26]
[1642032561203,10.4041,151.65,151.57,6.51]
[1642032562604,10.4041,151.65,151.57,0.25]
[1642032562805,10.4041,151.65,151.57,0.26]
[1642032563405,9.8952,151.63,151.56,0.02]
[1642032563603,9.8952,151.63,151.55,6.0]
[1642032563806,0.25,151.63,151.55,6.0]
[1642032564004,0.51,151.63,151.56,0.26]
[1642032564204,0.25,151.63,151.56,0.26]
[1642032564403,0.25,151.63,151.56,6.0]
[1642032564603,0.25,151.63,151.55,0.51]
[1642032564805,0.25,151.63,151.56,10.144]
[1642032565106,9.8942,151.65,151.57,6.26]
[1642032565308,10.1442,151.65,151.57,6.26]
[1642032565508,10.1442,151.65,151.57,6.51]
[1642032565707,2.638,151.66,151.57,16.4034]
[1642032565909,2.638,151.68,151.57,10.4034]
[1642032566107,34.2569,151.72,151.57,10.4034]
[1642032566108,76.1314,151.71,151.58,6.0]
[1642032566406,0.26,151.7,151.59,0.26]
[1642032566606,6.26,151.7,151.59,31.68734528]
[1642032566806,6.0,151.7,151.59,31.68734528]
[1642032567008,9.8915,151.69,151.6,6.0]
[1642032567208,12.5285,151.69,151.6,6.25]
[1642032567408,12.5285,151.69,151.61,0.26]
[1642032567607,12.7785,151.69,151.61,0.26]
[1642032568009,0.26,151.68,151.61,0.26]
[1642032568307,10.1521,151.68,151.61,0.26]
[1642032568508,10.1521,151.68,151.61,6.26]
[1642032568711,2.887,151.69,151.61,6.51]
[1642032568908,0.25,151.69,151.61,6.51]
[1642032569308,73.7444,151.71,151.61,10.4009]
[1642032569508,2.637,151.7,151.61,0.51]
[1642032569708,2.887,151.7,151.61,0.51]
[1642032569909,2.887,151.7,151.6,0.26]
[1642032570112,2.887,151.7,151.6,6.26]
[1642032570314,0.26,151.69,151.6,6.26]
[1642032570510,9.8922,151.68,151.6,0.26]
[1642032570710,2.637,151.67,151.61,6.0]
[1642032570911,2.637,151.67,151.62,0.26]
[1642032571110,0.25,151.67,151.62,0.26]
[1642032571511,10.1516,151.69,151.62,0.26]
[1642032571812,0.25,151.69,151.61,0.26]
[1642032572011,2.637,151.72,151.61,0.26]
[1642032572212,2.637,151.75,151.62,1.54333263]
[1642032572412,10.148,151.74,151.63,0.26]
[1642032572613,17.95277668,151.74,151.63,6.26]
[1642032572814,30.78010912,151.74,151.63,6.26]
[1642032573111,31.03010912,151.74,151.63,0.51]
[1642032573312,80.62287668,151.73,151.64,6.0]
[1642032573512,0.26,151.72,151.65,0.26]
[1642032573715,78.8181,151.73,151.65,6.26]
[1642032573914,23.8805,151.75,151.65,6.26]
[1642032574113,0.25,151.73,151.65,6.51]
[1642032574313,0.25,151.73,151.65,0.51]
[1642032574513,10.1384,151.73,151.65,0.25]
[1642032574714,1.80477668,151.72,151.65,0.25]
[1642032575013,23.8805,151.75,151.65,0.25]
[1642032575213,4.44177668,151.77,151.65,6.0]
[1642032575518,42.09951326,151.77,151.66,0.26]
[1642032575715,51.98591326,151.77,151.66,9.8869]
[1642032575914,51.98591326,151.77,151.67,0.26]
[1642032576114,51.98591326,151.77,151.67,6.26]
[1642032576315,2.06477668,151.76,151.67,6.0]
[1642032576514,2.636,151.75,151.66,0.25]
[1642032576714,4.69077668,151.75,151.66,0.25]
[1642032576916,2.06477668,151.74,151.66,0.25]
[1642032577215,2.31477668,151.74,151.63,6.51]
[1642032577417,14.83987668,151.74,151.64,9.8879]
[1642032577617,14.83987668,151.74,151.64,10.1379]
[1642032577820,14.83987668,151.74,151.64,0.25]
[1642032578021,14.83987668,151.74,151.63,6.0]
[1642032578218,66.04,151.72,151.63,6.0]
[1642032578419,2.897,151.71,151.56,9.45]
[1642032578617,66.04,151.7,151.56,9.45]
[1642032578818,2.638,151.69,151.56,9.45]
[1642032579016,2.71842957,151.68,151.56,9.45]
[1642032579217,2.638,151.67,151.56,9.45]
[1642032579448,4.70277668,151.67,151.57,0.26]
[1642032579619,4.95277668,151.67,151.57,0.26]
[1642032579818,1.80477668,151.66,151.57,0.26]
[1642032580019,2.898,151.65,151.56,0.25]
[1642032580318,3.148,151.65,151.56,0.25]
[1642032580521,13.0419,151.65,151.56,0.25]
[1642032580717,13.0419,151.65,151.55,16.4037]
[1642032580918,14.84667668,151.65,151.55,16.4037]
[1642032581120,12.20867668,151.65,151.55,16.4037]
[1642032581517,12.20867668,151.65,151.55,16.1537]
[1642032581718,15.8948,151.64,151.55,16.1537]
[1642032581918,0.26,151.63,151.55,16.1537]
[1642032582718,0.26,151.63,151.55,16.4037]
[1642032584727,17.94957668,151.64,151.55,16.4037]
[1642032585526,17.94957668,151.64,151.55,16.1537]
[1642032585730,17.94957668,151.64,151.55,0.26]
[1642032586131,2.898,151.63,151.54,0.26]
[1642032586328,9.8965,151.61,151.52,6.26]
[1642032586728,10.1465,151.61,151.52,6.26]
[1642032587252,10.1465,151.61,151.52,6.51]
[1642032588454,10.1465,151.61,151.52,16.4063]
[1642032588955,10.1465,151.61,151.52,16.4263]
[1642032589254,10.1465,151.61,151.52,16.4463]
[1642032590555,10.1465,151.61,151.54,0.02003579]
[1642032590958,0.25,151.61,151.54,0.02003579]
[1642032591156,13.0434,151.63,151.54,0.02003579]
[1642032591357,12.7834,151.63,151.54,6.28003579]
[1642032591556,2.888,151.63,151.54,6.28003579]
[1642032591758,2.888,151.63,151.54,6.53003579]
[1642032591957,2.888,151.63,151.55,6.0]
[1642032592358,2.888,151.63,151.54,0.53003579]
[1642032592758,2.888,151.63,151.54,0.02003579]
[1642032592960,0.26,151.62,151.54,0.02003579]
[1642032593162,9.8966,151.61,151.54,0.02003579]
[1642032593562,10.1466,151.61,151.54,0.02003579]
[1642032593959,10.1466,151.61,151.54,0.04003579]
[1642032594161,11.68734785,151.61,151.54,0.04003579]
[1642032594361,0.26,151.6,151.54,0.06003579]
[1642032594563,9.8993,151.57,151.54,0.06003579]
[1642032594760,6.06430001,151.56,151.54,0.06003579]
[1642032595163,71.26,151.55,151.54,3.579e-05]
[1642032595360,73.898,151.55,151.54,3.579e-05]
[1642032595562,84.0503,151.55,151.54,3.579e-05]
[1642032595760,19.0503,151.55,151.54,3.579e-05]
[1642032596360,12.7903,151.55,151.54,3.579e-05]
[1642032596763,10.1523,151.55,151.54,3.579e-05]
[1642032597962,10.4123,151.55,151.54,3.579e-05]
[1642032598163,22.5003,151.55,151.54,3.579e-05]
[1642032598863,51.5003,151.55,151.54,3.579e-05]
[1642032599565,22.5003,151.55,151.54,3.579e-05]
[1642032600169,111.6903,151.55,151.54,3.579e-05]
[1642032602767,119.49507668,151.55,151.54,3.579e-05]
[1642032604569,119.49507668,151.55,151.42,6.26]
[1642032604769,9.9052,151.48,151.42,6.0]
[1642032604971,0.26,151.47,151.4,6.0]
[1642032605370,0.26,151.47,151.39,27.24163935]
[1642032605570,0.25,151.48,151.4,6.0]
[1642032605771,9.9046,151.49,151.4,6.0]
[1642032605971,104.0698,151.51,151.4,7.53927375]
[1642032606173,0.25,151.49,151.41,1.79927375]
[1642032606571,0.25,151.49,151.42,6.0]
[1642032607072,10.1541,151.49,151.42,0.25]
[1642032607370,10.1541,151.49,151.41,0.26]
[1642032608376,10.1541,151.49,151.39,9.9046]
[1642032608377,0.26,151.48,151.39,9.9046]
[1642032608676,19.3556,151.47,151.35,23.7843]
[1642032608873,66.3,151.46,151.32,5.64282754]
[1642032609073,66.04,151.44,151.32,5.64282754]
[1642032609274,80.87481605,151.43,151.32,5.64282754]
[1642032609477,81.13481605,151.43,151.32,5.64282754]
[1642032609773,9.9096,151.41,151.28,63.53722754]
[1642032609974,6.26,151.4,151.28,5.64282754]
[1642032610174,17.76477668,151.4,151.28,5.64282754]
[1642032610378,9.96,151.4,151.28,5.64282754]
[1642032610576,9.96,151.4,151.28,36.1533527]
[1642032610975,11.76477668,151.4,151.28,30.51052516]
[1642032611178,9.9118,151.38,151.28,40.42262516]
[1642032611377,0.26,151.37,151.28,40.42262516]
[1642032611575,0.26,151.37,151.29,6.0]
[1642032611775,0.26,151.37,151.29,6.26]
[1642032612375,10.1721,151.37,151.29,6.0]
[1642032612778,19.8721,151.37,151.29,6.0]
[1642032613778,9.96,151.37,151.29,6.0]
[1642032614780,2.642,151.36,151.29,6.0]
[1642032614979,10.1733,151.35,151.29,6.25]
[1642032615179,10.4233,151.35,151.29,6.25]
[1642032615383,10.4233,151.35,151.29,6.0]
[1642032616382,10.1733,151.35,151.29,6.0]
[1642032616778,10.1733,151.35,151.29,6.25]
[1642032617178,10.1733,151.35,151.29,6.0]
[1642032617579,10.1733,151.35,151.29,6.25]
[1642032617979,10.4233,151.35,151.29,6.0]
[1642032618179,9.9124,151.37,151.29,6.0]
[1642032618581,10.1624,151.37,151.29,6.0]
[1642032618986,2.642,151.36,151.28,6.0]
[1642032619182,2.892,151.36,151.28,6.0]
[1642032619382,0.26,151.35,151.24,6.0]
[1642032619782,0.26,151.35,151.25,31.2477162]
[1642032619983,0.51,151.36,151.26,6.26]
[1642032620385,9.9137,151.35,151.26,16.1735]
[1642032620584,9.9137,151.35,151.26,16.4235]
[1642032620814,0.26,151.34,151.26,16.4235]
[1642032622318,10.1739,151.34,151.26,6.51]
[1642032622521,10.1739,151.34,151.26,6.26]
[1642032622719,10.4239,151.34,151.26,6.26]
[1642032624122,10.4239,151.34,151.26,6.51]
[1642032626124,10.4239,151.34,151.26,6.26]
[1642032626522,10.4239,151.34,151.26,16.1736]
[1642032626922,9.9132,151.36,151.26,16.1736]
[1642032627124,100.0731,151.37,151.26,32.8186]
[1642032627322,76.28277668,151.43,151.26,32.8186]
[1642032627323,2.642,151.39,151.26,32.8186]
[1642032627522,76.6201,151.42,151.26,33.0686]
[1642032627723,76.6201,151.42,151.26,34.61281406]
[1642032628523,86.5291,151.42,151.26,34.61281406]
[1642032628723,88.33387668,151.42,151.26,27.15781406]
[1642032628927,111.85767668,151.42,151.26,27.15781406]
[1642032629124,0.26,151.41,151.26,27.15781406]
[1642032629330,2.642,151.4,151.26,27.15781406]
[1642032629725,0.26,151.39,151.26,27.15781406]
[1642032629925,0.26,151.39,151.27,0.26]
[1642032630125,10.1709,151.39,151.3,9.9109]
[1642032630528,10.4209,151.39,151.31,6.26]
[1642032630729,10.4209,151.39,151.31,6.51]
[1642032631632,2.642,151.38,151.31,0.26]
[1642032631833,12.5538,151.38,151.32,6.0]
[1642032632030,12.5538,151.38,151.29,6.0]
[1642032632031,0.26,151.37,151.3,0.26]
[1642032632230,0.26,151.37,151.29,6.25]
[1642032632631,2.06477668,151.37,151.29,0.25]
[1642032632832,2.06477668,151.37,151.3,6.0]
[1642032632833,24.81467668,151.37,151.3,6.0]
[1642032633031,27.70667668,151.37,151.29,0.25]
[1642032633237,27.70667668,151.37,151.27,0.26]
[1642032633432,37.61867668,151.37,151.27,0.26]
[1642032633632,66.04,151.36,151.26,6.0]
[1642032633832,2.642,151.35,151.26,6.0]
[1642032634033,2.902,151.35,151.26,6.0]
[1642032634231,3.152,151.35,151.26,6.0]
[1642032635031,2.892,151.35,151.26,6.0]
[1642032635231,2.892,151.35,151.26,6.25]
[1642032635432,2.892,151.35,151.27,0.26]
[1642032636544,0.26,151.34,151.27,0.26]
[1642032637143,0.26,151.34,151.26,6.25]
[1642032637844,10.1741,151.34,151.26,6.25]
[1642032638245,10.4241,151.34,151.26,6.25]
[1642032639970,0.25,151.34,151.26,16.1635]
[1642032640173,2.892,151.35,151.27,3.77324362]
[1642032640573,2.892,151.35,151.28,6.0]
[1642032641573,10.174,151.34,151.28,6.0]
[1642032641775,10.424,151.34,151.28,6.0]
[1642032642474,10.424,151.34,151.27,0.25]
[1642032642674,10.424,151.34,151.26,6.51]
[1642032643574,10.424,151.34,151.27,3.7738406]
[1642032643777,10.424,151.34,151.27,4.0238406]
[1642032643977,10.424,151.34,151.28,6.26]
[1642032644176,10.424,151.34,151.28,6.0]
[1642032644376,76.464,151.34,151.28,6.0]
[1642032644578,76.464,151.34,151.28,9.7738406]
[1642032644777,76.464,151.34,151.28,3.7738406]
[1642032644975,79.106,151.34,151.29,6.0]
[1642032645376,79.106,151.34,151.28,3.7738406]
[1642032645577,79.106,151.34,151.27,3.7738406]
[1642032646578,79.106,151.34,151.24,7.54678761]
[1642032646776,79.106,151.34,151.24,7.79678761]
[1642032646978,6.0,151.33,151.24,7.54678761]
[1642032647180,78.134,151.32,151.24,7.54678761]
[1642032647378,75.9593,151.28,151.24,7.54678761]
[1642032647578,75.9593,151.28,151.25,3.7738406]
[1642032647777,6.32430001,151.27,151.25,3.7738406]
[1642032648179,6.57430001,151.27,151.25,3.7738406]
[1642032648388,6.57430001,151.27,151.25,4.06e-05]
[1642032648582,6.57430001,151.27,151.24,3.77294701]
[1642032648782,6.57430001,151.27,151.2,3.77294701]
[1642032648982,110.6038,151.26,151.2,3.77294701]
[1642032649186,116.4478,151.26,151.2,3.77294701]
[1642032649384,0.26,151.25,151.2,3.77294701]
[1642032649583,8.905,151.25,151.2,3.77294701]
[1642032649790,8.905,151.25,151.17,3.77294701]
[1642032649989,9.155,151.25,151.17,3.77294701]
[1642032650486,9.9225,151.23,151.17,3.77294701]
[1642032650687,10.1725,151.23,151.17,3.77294701]
[1642032650886,6.26,151.22,151.17,3.77294701]
[1642032651086,6.26,151.22,151.14,31.91698859]
[1642032651286,6.51,151.22,151.14,31.91698859]
[1642032651485,6.0,151.21,151.14,31.91698859]
[1642032651685,6.25,151.21,151.14,31.91698859]
[1642032651986,0.26,151.2,151.14,31.91698859]
[1642032652390,0.26,151.22,151.14,31.91698859]
[1642032652685,0.26,151.22,151.14,33.46194084]
[1642032652886,0.51,151.23,151.14,33.46194084]
[1642032653087,66.55,151.23,151.14,31.91698859]
[1642032653288,66.55,151.23,151.14,32.16698859]
[1642032653486,66.55,151.23,151.15,1.88081608]
[1642032654385,76.4718,151.23,151.15,1.88081608]
[1642032654786,76.4718,151.23,151.14,43.46980467]
[1642032654990,76.4718,151.23,151.14,33.54780467]
[1642032655587,76.2118,151.23,151.14,33.54780467]
[1642032656386,10.1718,151.23,151.14,33.54780467]
[1642032656589,10.1718,151.23,151.14,31.66698859]
[1642032656990,10.1822,151.22,151.14,31.66698859]
[1642032657188,10.4322,151.22,151.14,31.66698859]
[1642032657789,10.4322,151.22,151.14,41.58908859]
[1642032657989,10.1722,151.22,151.15,6.26]
[1642032658289,10.1722,151.22,151.15,6.51]
[1642032658493,10.1722,151.22,151.15,6.25]
[1642032658691,76.2122,151.22,151.15,6.25]
[1642032658890,10.1722,151.22,151.15,6.25]
[1642032659394,0.26,151.21,151.15,6.25]
[1642032659793,10.1722,151.22,151.15,6.25]
[1642032659992,0.25,151.22,151.16,0.26]
[1642032660197,23.2424,151.24,151.16,1.8056835]
[1642032660394,76.1858,151.26,151.16,1.8056835]
[1642032660593,23.7533,151.27,151.17,49.23183468]
[1642032660798,73.4215,151.3,151.17,49.23183468]
[1642032660997,0.25,151.27,151.18,33.317]
[1642032661195,0.25,151.27,151.18,39.85]
[1642032661493,0.25,151.27,151.2,25.41330763]
[1642032661693,9.9178,151.29,151.2,25.66330763]
[1642032661896,9.9178,151.29,151.21,6.26]
[1642032662095,9.9178,151.29,151.21,6.0]
[1642032662295,9.9178,151.29,151.21,0.25]
[1642032662495,66.04,151.28,151.21,0.25]
[1642032662698,9.9195,151.26,151.21,0.25]
[1642032662895,0.26,151.25,151.21,0.25]
[1642032663698,0.26,151.25,151.2,25.66330763]
[1642032664298,0.26,151.25,151.2,25.41330763]
[1642032664499,10.1799,151.25,151.16,1.88081608]
[1642032664697,10.1799,151.25,151.17,6.0]
[1642032664698,10.4299,151.25,151.17,6.0]
[1642032665098,76.4699,151.25,151.17,6.0]
[1642032665722,79.1149,151.25,151.17,6.0]
[1642032666128,79.1149,151.25,151.16,24.78351669]
[1642032666825,80.91967668,151.25,151.14,1.88081608]
[1642032667030,9.9238,151.19,151.14,1.88081608]
[1642032667325,10.1738,151.19,151.13,7.88081608]
[1642032667526,0.26,151.18,151.13,1.88081608]
[1642032667829,0.26,151.18,151.13,33.83019281]
[1642032668026,0.26,151.18,151.14,6.0]
[1642032668230,0.25,151.19,151.14,6.0]
[1642032668431,0.26,151.2,151.14,6.0]
[1642032669526,9.9248,151.18,151.14,6.0]
[1642032669726,10.1748,151.18,151.14,6.0]
[1642032669929,0.26,151.17,151.14,6.0]
[1642032670127,0.26,151.17,151.13,31.94937673]
[1642032671530,10.1748,151.18,151.13,31.94937673]
[1642032671731,12.5696,151.2,151.13,32.19937673]
[1642032671945,122.194,151.24,151.14,0.26]
[1642032671946,2.645,151.21,151.14,0.26]
[1642032672131,79.6655,151.24,151.14,6.26]
[1642032672331,79.6655,151.24,151.15,1.55554522]
[1642032672532,79.6655,151.24,151.16,6.0]
[1642032672731,79.6655,151.24,151.16,31.91172985]
[1642032672934,79.6655,151.24,151.16,33.46727507]
[1642032673539,79.6655,151.24,151.17,9.9201]
[1642032673832,79.6655,151.24,151.17,10.1701]
[1642032674040,79.6655,151.24,151.19,26.62271133]
[1642032674233,33.098,151.25,151.19,26.87271133]
[1642032674434,0.26,151.24,151.19,26.87271133]
[1642032674633,23.1777,151.25,151.19,26.87271133]
[1642032674833,84.9668,151.27,151.19,26.87271133]
[1642032675035,84.9668,151.27,151.2,0.26]
[1642032675234,0.26,151.26,151.2,0.26]
[1642032675441,84.9668,151.27,151.2,0.26]
[1642032675634,84.9668,151.27,151.2,6.26]
[1642032676036,85.2168,151.27,151.2,6.26]
[1642032676241,75.0477,151.27,151.2,16.4282]
[1642032676436,2.645,151.28,151.2,16.4282]
[1642032676637,57.3319,151.29,151.2,16.4282]
[1642032676836,47.4141,151.29,151.2,16.4282]
[1642032677436,0.26,151.28,151.2,16.4282]
[1642032678042,0.26,151.28,151.24,9.9155]
[1642032678236,0.26,151.3,151.25,26.01417961]
[1642032678436,0.26,151.3,151.25,32.01417961]
[1642032679336,0.26,151.31,151.25,32.01417961]
[1642032679737,10.176,151.31,151.25,6.0]
[1642032679936,12.82,151.31,151.25,6.0]
[1642032680137,13.07,151.31,151.23,6.0]
[1642032680338,12.82,151.31,151.23,6.0]
[1642032681448,22.27,151.31,151.23,6.0]
[1642032681647,24.07477668,151.31,151.21,1.88081608]
[1642032681849,48.38877668,151.31,151.22,6.0]
[1642032682250,48.63877668,151.31,151.22,6.0]
[1642032682450,66.04,151.3,151.2,1.88081608]
[1642032682651,9.9198,151.26,151.21,6.0]
[1642032683053,2.644,151.25,151.21,6.0]
[1642032683251,3.154,151.25,151.21,6.0]
[1642032683452,0.51,151.25,151.19,6.0]
[1642032683852,10.17,151.25,151.19,6.0]
[1642032684053,0.25,151.25,151.19,6.0]
[1642032684581,0.26,151.27,151.2,0.26]
[1642032685477,10.1791,151.27,151.2,10.1782]
[1642032685682,10.4291,151.27,151.21,26.94321277]
[1642032685877,10.4291,151.27,151.21,32.94321277]
[1642032686878,0.51,151.27,151.21,42.86081277]
[1642032687086,2.644,151.31,151.22,0.26]
[1642032687280,74.4757,151.32,151.22,0.26]
[1642032687480,74.4757,151.32,151.22,1.81554522]
[1642032687685,74.4757,151.32,151.22,2.06554522]
[1642032687982,74.4757,151.32,151.24,29.02830716]
[1642032688183,74.4757,151.32,151.26,9.914]
[1642032688380,23.3733,151.34,151.27,26.83099579]
[1642032688580,23.3733,151.34,151.27,32.83099579]
[1642032688782,101.2896,151.36,151.27,32.83099579]
[1642032688984,81.1149,151.37,151.27,33.08099579]
[1642032689182,104.25128823,151.38,151.27,33.08099579]
[1642032689183,11.05128823,151.38,151.27,33.08099579]
[1642032689382,9.45,151.38,151.27,42.99419579]
[1642032690581,0.26,151.37,151.27,42.99419579]
[1642032690786,9.9129,151.36,151.27,42.99419579]
[1642032690983,9.9129,151.36,151.27,42.73419579]
[1642032691184,10.1629,151.36,151.27,42.73419579]
[1642032692487,0.25,151.36,151.27,42.48419579]
[1642032692689,2.642,151.38,151.27,42.48419579]
[1642032693087,2.892,151.38,151.28,9.913]
[1642032693393,66.29,151.38,151.28,9.913]
[1642032693789,0.25,151.38,151.28,9.913]
[1642032693988,0.25,151.38,151.29,6.0]
[1642032694188,27.3587,151.39,151.29,6.0]
[1642032694189,9.9119,151.37,151.29,16.4221]
[1642032694389,0.26,151.36,151.29,16.1621]
[1642032694592,0.26,151.36,151.29,6.0]
[1642032694789,9.71,151.36,151.23,1.88081608]
[1642032694990,79.8036,151.35,151.24,6.0]
[1642032695292,80.0536,151.35,151.24,6.0]
[1642032695490,0.26,151.34,151.24,6.0]
[1642032695689,9.9161,151.31,151.24,6.0]
[1642032695892,8.904,151.3,151.23,1.88081608]
[1642032696093,18.354,151.3,151.2,1.88081608]
[1642032696293,20.40877668,151.3,151.2,1.88081608]
[1642032696689,18.604,151.3,151.2,1.88081608]
[1642032697292,18.604,151.3,151.16,1.88081608]
[1642032697489,9.9198,151.27,151.19,23.01372685]
[1642032697690,9.7,151.3,151.2,0.26]
[1642032697893,2.644,151.34,151.2,7.82047658]
[1642032698090,89.2556,151.35,151.21,66.04]
[1642032698292,0.26,151.33,151.21,67.60047658]
[1642032698492,0.26,151.33,151.22,7.82047658]
[1642032698690,0.26,151.33,151.23,24.13719126]
[1642032698890,0.26,151.33,151.24,0.26]
[1642032699091,0.26,151.33,151.24,6.26]
[1642032699290,2.644,151.34,151.25,9.9144]
[1642032699490,77.1616,151.35,151.26,6.26]
[1642032699690,58.0148,151.37,151.26,6.51]
[1642032699893,58.0148,151.37,151.26,0.51]
[1642032700090,58.0148,151.37,151.26,0.25]
[1642032700291,58.0148,151.37,151.26,31.90771018]
[1642032700489,58.0148,151.37,151.27,6.26]
[1642032700690,58.2648,151.37,151.27,6.51]
[1642032700890,58.0148,151.37,151.27,6.51]
[1642032701490,10.1728,151.36,151.28,9.9125]
[1642032701691,10.1728,151.36,151.29,26.22223555]
[1642032701890,9.45,151.37,151.29,26.48223555]
[1642032702090,72.1964,151.38,151.3,6.0]
[1642032702291,2.642,151.39,151.3,6.0]
[1642032702593,1.60128823,151.43,151.31,10.1704]
[1642032702793,1.60128823,151.41,151.32,94.87227531]
[1642032702990,1.60128823,151.41,151.33,0.26]
[1642032703391,1.60128823,151.41,151.33,1.82047658]
[1642032703595,1.60128823,151.41,151.34,7.56047658]
[1642032703793,9.45,151.48,151.34,13.14047658]
[1642032703992,9.45,151.48,151.35,25.9536496]
[1642032704193,9.45,151.48,151.35,26.2036496]
[1642032704393,9.9055,151.47,151.38,29.42318585]
[1642032704595,9.9055,151.47,151.39,6.0]
[1642032704794,9.9055,151.47,151.39,6.26]
[1642032704994,2.642,151.49,151.39,6.51]
[1642032705194,33.0346,151.5,151.39,6.51]
[1642032705394,42.9382,151.5,151.39,16.4153]
[1642032705993,42.9382,151.5,151.39,17.97577658]
[1642032706197,33.0346,151.5,151.39,17.97577658]
[1642032706593,9.45,151.5,151.39,17.97577658]
[1642032707298,9.7,151.5,151.39,17.97577658]
[1642032708496,0.26,151.49,151.39,16.4153]
[1642032708895,0.51,151.5,151.39,16.4153]
[1642032709098,0.26,151.5,151.39,16.4153]
[1642032710396,9.9042,151.49,151.39,16.4153]
[1642032710796,10.1542,151.49,151.39,16.1553]
[1642032710996,0.26,151.48,151.39,16.1553]
[1642032711402,0.51,151.49,151.39,16.1553]
[1642032711999,0.26,151.49,151.39,16.1553]
[1642032712497,9.9052,151.48,151.4,0.26]
[1642032712698,9.9052,151.48,151.4,10.1646]
[1642032712897,0.26,151.47,151.41,30.37791374]
[1642032713198,0.26,151.47,151.41,30.62791374]
[1642032714199,9.9052,151.48,151.41,30.62791374]
[1642032714399,9.9052,151.48,151.42,0.26]
[1642032714601,9.9052,151.48,151.42,6.26]
[1642032715001,9.9052,151.48,151.42,6.51]
[1642032715601,9.9052,151.48,151.41,30.37791374]
[1642032715602,10.1552,151.48,151.41,30.37791374]
[1642032716303,2.641,151.47,151.41,30.37791374]
[1642032716506,12.5469,151.47,151.41,30.37791374]